[Event "December 5 Late 2023"]
[Site "https://www.chess.com"]
[Date "2023.12.05"]
[Round "6"]
[White "Wieczorek, Zbigniew"]
[Black "Fernandez Hernandez, Gerardo"]
[Result "1-0"]
[Board "91"]
[TimeControl "180+1"]
[WhiteFideId "1102001"]
[BlackFideId "2207400"]
[WhiteElo "2225"]
[BlackElo "2228"]
[WhiteTeam "POL"]
[BlackTeam "ESP"]
[WhiteClock "0:01:24"]
[BlackClock "0:01:23"]

1. Nf3 {[%clk 0:02:59]}  Nf6 {[%clk 0:02:59]} 2. c4 {[%clk 0:02:58]}  g6 {[%clk 0:02:59]} 3. Nc3 {[%clk 0:02:59]}  d6 {[%clk 0:02:58]} 4. g3 {[%clk 0:02:57]}  Bf5 {[%clk 0:02:55]} 5. d3 {[%clk 0:02:55]}  c5 {[%clk 0:02:49]} 6. Bg2 {[%clk 0:02:52]}  Nc6 {[%clk 0:02:48]} 7. a3 {[%clk 0:02:52]}  Bg7 {[%clk 0:02:47]} 8. Rb1 {[%clk 0:02:41]}  a5 {[%clk 0:02:38]} 9. O-O {[%clk 0:02:40]}  O-O {[%clk 0:02:38]} 10. h3 {[%clk 0:02:20]}  h6 {[%clk 0:02:26]} 11. e4 {[%clk 0:02:14]}  Bd7 {[%clk 0:02:20]} 12. d4 {[%clk 0:02:10]}  cxd4 {[%clk 0:02:13]} 13. Nxd4 {[%clk 0:02:09]}  Nxd4 {[%clk 0:01:59]} 14. Qxd4 {[%clk 0:02:08]}  Ng4 {[%clk 0:01:53]} 15. Qd2 {[%clk 0:02:00]}  Ne5 {[%clk 0:01:50]} 16. b3 {[%clk 0:02:00]}  Bc6 {[%clk 0:01:39]} 17. f4 {[%clk 0:01:51]}  Qb6+ {[%clk 0:01:27]} 18. Kh2 {[%clk 0:01:49]}  Nxc4 {[%clk 0:01:27]} 19. bxc4 {[%clk 0:01:37]}  Bxc3 {[%clk 0:01:26]} 20. Qxc3 {[%clk 0:01:28]}  Qxb1 {[%clk 0:01:25]} 21. Bb2 {[%clk 0:01:25]}  Qxf1 {[%clk 0:01:23]} 22. Qg7# {[%clk 0:01:24]} 1-0

[Event "December 5 Late 2023"]
[Site "https://www.chess.com"]
[Date "2023.12.05"]
[Round "6"]
[White "Haszon, David"]
[Black "Agibileg, Uurtsaikh"]
[Result "0-1"]
[Board "93"]
[TimeControl "180+1"]
[WhiteFideId "733610"]
[BlackFideId "4901606"]
[WhiteElo "2401"]
[BlackElo "2617"]
[WhiteTeam "HUN"]
[BlackTeam "MGL"]
[WhiteClock "0:02:10"]
[BlackClock "0:01:33"]

1. e4 {[%clk 0:03:00]}  e5 {[%clk 0:02:55]} 2. Nf3 {[%clk 0:03:01]}  Nc6 {[%clk 0:02:55]} 3. Bb5 {[%clk 0:03:01]}  a6 {[%clk 0:02:53]} 4. Ba4 {[%clk 0:03:01]}  Nf6 {[%clk 0:02:53]} 5. d4 {[%clk 0:03:00]}  b5 {[%clk 0:02:42]} 6. Bb3 {[%clk 0:02:57]}  exd4 {[%clk 0:02:31]} 7. O-O {[%clk 0:02:58]}  Nxe4 {[%clk 0:02:29]} 8. Bd5 {[%clk 0:02:55]}  Nc5 {[%clk 0:02:27]} 9. Nxd4 {[%clk 0:02:53]}  Bb7 {[%clk 0:02:26]} 10. Re1+ {[%clk 0:02:49]}  Ne6 {[%clk 0:02:25]} 11. f4 {[%clk 0:02:46]}  Bc5 {[%clk 0:02:24]} 12. c3 {[%clk 0:02:40]}  O-O {[%clk 0:02:23]} 13. f5 {[%clk 0:02:40]}  Ncxd4 {[%clk 0:02:20]} 14. Bxb7 {[%clk 0:02:37]}  Nxf5+ {[%clk 0:02:04]} 15. Kh1 {[%clk 0:02:33]}  Qh4 {[%clk 0:02:04]} 16. h3 {[%clk 0:02:20]}  Rab8 {[%clk 0:01:46]} 17. Bf3 {[%clk 0:02:15]}  Rb6 {[%clk 0:01:33]} 18. Re4 {[%clk 0:02:10]}  Ng3+ {[%clk 0:01:33]} 0-1

[Event "December 5 Late 2023"]
[Site "https://www.chess.com"]
[Date "2023.12.05"]
[Round "6"]
[White "Dubreuil, Julien"]
[Black "Soderstrom, Adrian"]
[Result "0-1"]
[Board "95"]
[TimeControl "180+1"]
[WhiteFideId "621285"]
[BlackFideId "1745786"]
[WhiteElo "2400"]
[BlackElo "2554"]
[WhiteTeam "FRA"]
[BlackTeam "SWE"]
[WhiteClock "0:01:33"]
[BlackClock "0:02:06"]

1. e4 {[%clk 0:03:00]}  e6 {[%clk 0:02:58]} 2. d4 {[%clk 0:03:00]}  d5 {[%clk 0:02:59]} 3. e5 {[%clk 0:03:00]}  c5 {[%clk 0:02:59]} 4. c3 {[%clk 0:03:00]}  Nc6 {[%clk 0:02:59]} 5. Nf3 {[%clk 0:03:01]}  Nge7 {[%clk 0:02:59]} 6. dxc5 {[%clk 0:02:58]}  Ng6 {[%clk 0:02:57]} 7. b4 {[%clk 0:02:58]}  a5 {[%clk 0:02:54]} 8. b5 {[%clk 0:02:58]}  Ncxe5 {[%clk 0:02:55]} 9. Nxe5 {[%clk 0:02:57]}  Nxe5 {[%clk 0:02:56]} 10. Qd4 {[%clk 0:02:52]}  Ng6 {[%clk 0:02:45]} 11. c4 {[%clk 0:02:48]}  Qc7 {[%clk 0:02:12]} 12. Ba3 {[%clk 0:02:47]}  Be7 {[%clk 0:02:10]} 13. Qxg7 {[%clk 0:02:33]}  Qf4 {[%clk 0:02:09]} 14. Bd3 {[%clk 0:01:33]}  Bf6 {[%clk 0:02:06]} 0-1

[Event "December 5 Late 2023"]
[Site "https://www.chess.com"]
[Date "2023.12.05"]
[Round "6"]
[White "Veljanoski, Andrej"]
[Black "Mickiewicz, Piotr"]
[Result "1-0"]
[Board "96"]
[TimeControl "180+1"]
[WhiteFideId "15003604"]
[BlackFideId "1114891"]
[WhiteElo "2548"]
[BlackElo "2389"]
[WhiteTeam "MKD"]
[BlackTeam "POL"]
[WhiteClock "0:00:49"]
[BlackClock "0:00:05"]

1. g3 {[%clk 0:03:00]}  Nf6 {[%clk 0:02:57]} 2. Bg2 {[%clk 0:03:01]}  c5 {[%clk 0:02:57]} 3. b3 {[%clk 0:03:02]}  g6 {[%clk 0:02:55]} 4. Bb2 {[%clk 0:03:01]}  Bg7 {[%clk 0:02:55]} 5. Nf3 {[%clk 0:03:01]}  O-O {[%clk 0:02:55]} 6. O-O {[%clk 0:03:01]}  Nc6 {[%clk 0:02:55]} 7. c4 {[%clk 0:03:01]}  d5 {[%clk 0:02:52]} 8. cxd5 {[%clk 0:03:01]}  Nxd5 {[%clk 0:02:46]} 9. Bxg7 {[%clk 0:03:02]}  Kxg7 {[%clk 0:02:45]} 10. Qc2 {[%clk 0:03:02]}  Qd6 {[%clk 0:02:43]} 11. Nc3 {[%clk 0:03:00]}  Nxc3 {[%clk 0:02:33]} 12. Qxc3+ {[%clk 0:03:01]}  f6 {[%clk 0:02:29]} 13. Rac1 {[%clk 0:03:00]}  b6 {[%clk 0:02:28]} 14. Rfd1 {[%clk 0:02:53]}  e5 {[%clk 0:02:24]} 15. d3 {[%clk 0:02:30]}  Be6 {[%clk 0:02:20]} 16. e3 {[%clk 0:02:27]}  Rac8 {[%clk 0:02:15]} 17. Nd2 {[%clk 0:02:26]}  Rfd8 {[%clk 0:01:58]} 18. Ne4 {[%clk 0:02:24]}  Qe7 {[%clk 0:01:57]} 19. f4 {[%clk 0:02:24]}  exf4 {[%clk 0:01:44]} 20. Rf1 {[%clk 0:02:23]}  fxe3 {[%clk 0:01:35]} 21. Rce1 {[%clk 0:02:17]}  Nd4 {[%clk 0:01:28]} 22. Rxe3 {[%clk 0:02:16]}  f5 {[%clk 0:01:26]} 23. Nd2 {[%clk 0:02:16]}  Qf6 {[%clk 0:01:21]} 24. Kh1 {[%clk 0:02:13]}  Bf7 {[%clk 0:01:20]} 25. g4 {[%clk 0:02:10]}  Rc7 {[%clk 0:01:05]} 26. Ne4 {[%clk 0:02:02]}  Qe5 {[%clk 0:01:01]} 27. gxf5 {[%clk 0:02:01]}  gxf5 {[%clk 0:00:59]} 28. Rg3+ {[%clk 0:02:00]}  Kh8 {[%clk 0:00:57]} 29. Ng5 {[%clk 0:01:48]}  Bd5 {[%clk 0:00:56]} 30. Re1 {[%clk 0:01:39]}  Qd6 {[%clk 0:00:43]} 31. Qd2 {[%clk 0:01:21]}  f4 {[%clk 0:00:38]} 32. Rh3 {[%clk 0:01:19]}  Bxg2+ {[%clk 0:00:31]} 33. Qxg2 {[%clk 0:01:20]}  Rg7 {[%clk 0:00:30]} 34. Qe4 {[%clk 0:01:12]}  h6 {[%clk 0:00:09]} 35. Qe8+ {[%clk 0:01:05]}  Rxe8 {[%clk 0:00:08]} 36. Rxe8+ {[%clk 0:01:06]}  Rg8 {[%clk 0:00:08]} 37. Nf7+ {[%clk 0:01:06]}  Kg7 {[%clk 0:00:08]} 38. Nxd6 {[%clk 0:01:06]}  Rxe8 {[%clk 0:00:07]} 39. Nxe8+ {[%clk 0:01:07]}  Kg6 {[%clk 0:00:07]} 40. Nd6 {[%clk 0:01:06]}  Kg5 {[%clk 0:00:05]} 41. Ne4+ {[%clk 0:01:06]}  Kg4 {[%clk 0:00:05]} 42. Rxh6 {[%clk 0:01:06]}  Kf3 {[%clk 0:00:05]} 43. Rh3+ {[%clk 0:00:59]}  Ke2 {[%clk 0:00:04]} 44. Rh8 {[%clk 0:00:54]}  f3 {[%clk 0:00:05]} 45. Re8 {[%clk 0:00:52]}  Kxd3 {[%clk 0:00:05]} 46. Nf2+ {[%clk 0:00:51]}  Kd2 {[%clk 0:00:04]} 47. h4 {[%clk 0:00:52]}  Ne2 {[%clk 0:00:04]} 48. Kh2 {[%clk 0:00:51]}  Ke1 {[%clk 0:00:05]} 49. Nd3+ {[%clk 0:00:50]}  Kf1 {[%clk 0:00:06]} 50. h5 {[%clk 0:00:49]}  b5 {[%clk 0:00:06]} 51. h6 {[%clk 0:00:49]}  c4 {[%clk 0:00:06]} 52. bxc4 {[%clk 0:00:49]}  bxc4 {[%clk 0:00:07]} 53. Ne5 {[%clk 0:00:47]}  f2 {[%clk 0:00:07]} 54. Ng4 {[%clk 0:00:48]}  Nd4 {[%clk 0:00:07]} 55. Nxf2 {[%clk 0:00:47]}  Kxf2 {[%clk 0:00:06]} 56. Rf8+ {[%clk 0:00:47]}  Nf3+ {[%clk 0:00:07]} 57. Rxf3+ {[%clk 0:00:47]}  Kxf3 {[%clk 0:00:07]} 58. h7 {[%clk 0:00:48]}  c3 {[%clk 0:00:07]} 59. h8=Q {[%clk 0:00:48]}  c2 {[%clk 0:00:05]} 60. Qb2 {[%clk 0:00:49]} 1-0

[Event "December 5 Late 2023"]
[Site "https://www.chess.com"]
[Date "2023.12.05"]
[Round "6"]
[White "Figorito, Nick"]
[Black "Sanchez Alvares, Kelvin Antonio"]
[Result "0-1"]
[Board "99"]
[TimeControl "180+1"]
[WhiteFideId "30923689"]
[BlackFideId "3906680"]
[WhiteElo "2382"]
[BlackElo "2521"]
[WhiteTeam "USA"]
[BlackTeam "VEN"]
[WhiteClock "0:00:05"]
[BlackClock "0:00:49"]

1. Nf3 {[%clk 0:03:00]}  d5 {[%clk 0:02:51]} 2. g3 {[%clk 0:03:01]}  Nf6 {[%clk 0:02:51]} 3. Bg2 {[%clk 0:03:02]}  c6 {[%clk 0:02:51]} 4. O-O {[%clk 0:03:02]}  Bf5 {[%clk 0:02:50]} 5. c4 {[%clk 0:03:02]}  e6 {[%clk 0:02:50]} 6. d3 {[%clk 0:03:01]}  Nbd7 {[%clk 0:02:49]} 7. Nc3 {[%clk 0:03:01]}  h6 {[%clk 0:02:49]} 8. Bf4 {[%clk 0:03:00]}  Be7 {[%clk 0:02:49]} 9. Qb3 {[%clk 0:02:59]}  Qb6 {[%clk 0:02:48]} 10. Qxb6 {[%clk 0:02:59]}  axb6 {[%clk 0:02:47]} 11. Ne5 {[%clk 0:02:55]}  g5 {[%clk 0:02:44]} 12. Nxd7 {[%clk 0:02:55]}  Nxd7 {[%clk 0:02:44]} 13. Bd2 {[%clk 0:02:50]}  Bg6 {[%clk 0:02:43]} 14. cxd5 {[%clk 0:02:46]}  exd5 {[%clk 0:02:42]} 15. d4 {[%clk 0:02:37]}  b5 {[%clk 0:02:38]} 16. a3 {[%clk 0:02:36]}  Nb6 {[%clk 0:02:31]} 17. e4 {[%clk 0:02:30]}  Nc4 {[%clk 0:02:28]} 18. Bc1 {[%clk 0:02:25]}  dxe4 {[%clk 0:02:27]} 19. Bxe4 {[%clk 0:02:23]}  Bxe4 {[%clk 0:02:21]} 20. Nxe4 {[%clk 0:02:24]}  O-O-O {[%clk 0:02:20]} 21. b3 {[%clk 0:02:21]}  Na5 {[%clk 0:02:15]} 22. Nd2 {[%clk 0:02:04]}  Bf6 {[%clk 0:02:07]} 23. Bb2 {[%clk 0:01:52]}  Bxd4 {[%clk 0:02:01]} 24. Bxd4 {[%clk 0:01:52]}  Rxd4 {[%clk 0:02:01]} 25. Nf3 {[%clk 0:01:46]}  Rd5 {[%clk 0:02:00]} 26. b4 {[%clk 0:01:46]}  Nc4 {[%clk 0:01:58]} 27. Rfe1 {[%clk 0:01:44]}  Rhd8 {[%clk 0:01:57]} 28. Re7 {[%clk 0:01:42]}  Rd1+ {[%clk 0:01:56]} 29. Rxd1 {[%clk 0:01:41]}  Rxd1+ {[%clk 0:01:57]} 30. Kg2 {[%clk 0:01:42]}  Rd7 {[%clk 0:01:57]} 31. Re8+ {[%clk 0:01:36]}  Kc7 {[%clk 0:01:57]} 32. Ne5 {[%clk 0:01:28]}  Nxe5 {[%clk 0:01:55]} 33. Rxe5 {[%clk 0:01:28]}  b6 {[%clk 0:01:48]} 34. h4 {[%clk 0:01:15]}  Kd6 {[%clk 0:01:41]} 35. Re8 {[%clk 0:01:08]}  gxh4 {[%clk 0:01:38]} 36. gxh4 {[%clk 0:01:09]}  Re7 {[%clk 0:01:35]} 37. Rh8 {[%clk 0:01:06]}  Re6 {[%clk 0:01:33]} 38. Rb8 {[%clk 0:01:06]}  Kc7 {[%clk 0:01:31]} 39. Rf8 {[%clk 0:01:05]}  Rf6 {[%clk 0:01:32]} 40. Ra8 {[%clk 0:00:52]}  c5 {[%clk 0:01:29]} 41. bxc5 {[%clk 0:00:48]}  bxc5 {[%clk 0:01:28]} 42. Kf1 {[%clk 0:00:48]}  Kb7 {[%clk 0:01:22]} 43. Rd8 {[%clk 0:00:45]}  Kc6 {[%clk 0:01:21]} 44. Ra8 {[%clk 0:00:42]}  Kd5 {[%clk 0:01:20]} 45. Ke2 {[%clk 0:00:37]}  Kc4 {[%clk 0:01:20]} 46. Rc8 {[%clk 0:00:35]}  Rf4 {[%clk 0:01:15]} 47. h5 {[%clk 0:00:30]}  Rf5 {[%clk 0:01:15]} 48. Rc7 {[%clk 0:00:30]}  Kd4 {[%clk 0:01:09]} 49. Rb7 {[%clk 0:00:25]}  c4 {[%clk 0:01:06]} 50. Kd1 {[%clk 0:00:16]}  Kc3 {[%clk 0:01:06]} 51. Ke2 {[%clk 0:00:14]}  Kb3 {[%clk 0:01:04]} 52. Ra7 {[%clk 0:00:10]}  c3 {[%clk 0:01:04]} 53. Kd3 {[%clk 0:00:07]}  Rxf2 {[%clk 0:01:02]} 54. Rc7 {[%clk 0:00:05]}  Rf3+ {[%clk 0:01:01]} 55. Ke2 {[%clk 0:00:04]}  Rf5 {[%clk 0:01:02]} 56. a4 {[%clk 0:00:03]}  b4 {[%clk 0:00:58]} 57. a5 {[%clk 0:00:03]}  Rxa5 {[%clk 0:00:57]} 58. Rxf7 {[%clk 0:00:04]}  Rxh5 {[%clk 0:00:57]} 59. Ra7 {[%clk 0:00:04]}  Kb2 {[%clk 0:00:53]} 60. Rg7 {[%clk 0:00:03]}  b3 {[%clk 0:00:53]} 61. Rg1 {[%clk 0:00:02]}  c2 {[%clk 0:00:53]} 62. Kd2 {[%clk 0:00:03]}  Rd5+ {[%clk 0:00:52]} 63. Ke3 {[%clk 0:00:03]}  Rd1 {[%clk 0:00:53]} 64. Rg6 {[%clk 0:00:02]}  c1=Q+ {[%clk 0:00:52]} 65. Ke4 {[%clk 0:00:02]}  Qc2+ {[%clk 0:00:53]} 66. Ke5 {[%clk 0:00:03]}  Qxg6 {[%clk 0:00:52]} 67. Kf4 {[%clk 0:00:03]}  Rd4+ {[%clk 0:00:52]} 68. Ke3 {[%clk 0:00:04]}  Qe4+ {[%clk 0:00:51]} 69. Kf2 {[%clk 0:00:05]}  Rd2+ {[%clk 0:00:51]} 70. Kg1 {[%clk 0:00:05]}  Qb1# {[%clk 0:00:49]} 0-1

[Event "December 5 Late 2023"]
[Site "https://www.chess.com"]
[Date "2023.12.05"]
[Round "6"]
[White "Ferreira, Vitor Hugo Vieira"]
[Black "Su, Dion"]
[Result "1-0"]
[Board "102"]
[TimeControl "180+1"]
[WhiteFideId "2119765"]
[BlackFideId "2029731"]
[WhiteElo "2509"]
[BlackElo "2379"]
[WhiteTeam "BRA"]
[BlackTeam "USA"]
[WhiteClock "0:00:06"]
[BlackClock "0:00:02"]

1. d4 {[%clk 0:02:51]}  Nf6 {[%clk 0:03:00]} 2. c4 {[%clk 0:02:48]}  e6 {[%clk 0:03:00]} 3. Nf3 {[%clk 0:02:45]}  c5 {[%clk 0:03:00]} 4. d5 {[%clk 0:02:44]}  b5 {[%clk 0:02:59]} 5. dxe6 {[%clk 0:02:35]}  fxe6 {[%clk 0:02:58]} 6. cxb5 {[%clk 0:02:34]}  d5 {[%clk 0:02:58]} 7. e3 {[%clk 0:02:33]}  Bd6 {[%clk 0:02:57]} 8. Nc3 {[%clk 0:02:34]}  O-O {[%clk 0:02:57]} 9. e4 {[%clk 0:02:17]}  dxe4 {[%clk 0:02:21]} 10. Ng5 {[%clk 0:02:17]}  Qe7 {[%clk 0:02:01]} 11. Ngxe4 {[%clk 0:02:16]}  Bc7 {[%clk 0:01:58]} 12. Bg5 {[%clk 0:02:12]}  Nbd7 {[%clk 0:01:56]} 13. Bd3 {[%clk 0:02:04]}  Bb7 {[%clk 0:01:47]} 14. O-O {[%clk 0:02:01]}  h6 {[%clk 0:01:45]} 15. Bh4 {[%clk 0:02:00]}  g5 {[%clk 0:01:31]} 16. Bg3 {[%clk 0:01:57]}  e5 {[%clk 0:01:27]} 17. h4 {[%clk 0:01:32]}  g4 {[%clk 0:01:16]} 18. Qd2 {[%clk 0:01:09]}  Qg7 {[%clk 0:00:58]} 19. Rae1 {[%clk 0:01:01]}  Rad8 {[%clk 0:00:57]} 20. Nxf6+ {[%clk 0:00:59]}  Nxf6 {[%clk 0:00:57]} 21. Bc4+ {[%clk 0:00:57]}  Kh8 {[%clk 0:00:57]} 22. Qe3 {[%clk 0:00:56]}  Rde8 {[%clk 0:00:48]} 23. Rd1 {[%clk 0:00:44]}  Nh5 {[%clk 0:00:42]} 24. Bd5 {[%clk 0:00:37]}  Bc8 {[%clk 0:00:40]} 25. Ne4 {[%clk 0:00:31]}  Nf4 {[%clk 0:00:35]} 26. Bc6 {[%clk 0:00:28]}  Rd8 {[%clk 0:00:25]} 27. Nxc5 {[%clk 0:00:27]}  Bb6 {[%clk 0:00:20]} 28. b4 {[%clk 0:00:27]}  Rde8 {[%clk 0:00:12]} 29. Rfe1 {[%clk 0:00:25]}  Re7 {[%clk 0:00:11]} 30. Kh2 {[%clk 0:00:21]}  Bf5 {[%clk 0:00:08]} 31. Bxf4 {[%clk 0:00:16]}  exf4 {[%clk 0:00:08]} 32. Qxe7 {[%clk 0:00:16]}  g3+ {[%clk 0:00:09]} 33. Kh1 {[%clk 0:00:14]}  Rf7 {[%clk 0:00:08]} 34. Rd8+ {[%clk 0:00:09]}  Kh7 {[%clk 0:00:08]} 35. Qe8 {[%clk 0:00:09]}  gxf2 {[%clk 0:00:07]} 36. Rf1 {[%clk 0:00:07]}  Qg4 {[%clk 0:00:03]} 37. Qh8+ {[%clk 0:00:05]}  Kg6 {[%clk 0:00:02]} 38. Rg8+ {[%clk 0:00:06]} 1-0

[Event "December 5 Late 2023"]
[Site "https://www.chess.com"]
[Date "2023.12.05"]
[Round "6"]
[White "Akhayan, Ruben"]
[Black "Rogov, Matfey"]
[Result "0-1"]
[Board "103"]
[TimeControl "180+1"]
[WhiteFideId "204439"]
[BlackFideId "44191308"]
[WhiteElo "2379"]
[BlackElo "2506"]
[WhiteTeam "BEL"]
[BlackTeam "RUS"]
[WhiteClock "0:00:02"]
[BlackClock "0:00:01"]

1. e4 {[%clk 0:03:00]}  a6 {[%clk 0:02:59]} 2. d4 {[%clk 0:03:00]}  e6 {[%clk 0:02:59]} 3. h4 {[%clk 0:02:53]}  b5 {[%clk 0:02:57]} 4. Bg5 {[%clk 0:02:50]}  Be7 {[%clk 0:02:55]} 5. Nf3 {[%clk 0:02:44]}  Bb7 {[%clk 0:02:53]} 6. Bd3 {[%clk 0:02:44]}  d5 {[%clk 0:02:50]} 7. e5 {[%clk 0:02:42]}  Nd7 {[%clk 0:02:50]} 8. c3 {[%clk 0:02:41]}  c5 {[%clk 0:02:49]} 9. a3 {[%clk 0:02:34]}  h6 {[%clk 0:02:47]} 10. Be3 {[%clk 0:02:29]}  c4 {[%clk 0:02:36]} 11. Bc2 {[%clk 0:02:27]}  Nb6 {[%clk 0:02:36]} 12. Nbd2 {[%clk 0:02:25]}  a5 {[%clk 0:02:34]} 13. Nf1 {[%clk 0:02:21]}  Bc6 {[%clk 0:02:29]} 14. Ng3 {[%clk 0:02:21]}  Kd7 {[%clk 0:02:19]} 15. Nd2 {[%clk 0:02:18]}  Qf8 {[%clk 0:02:06]} 16. h5 {[%clk 0:02:17]}  f5 {[%clk 0:01:45]} 17. Qf3 {[%clk 0:01:58]}  Bg5 {[%clk 0:01:40]} 18. Nxf5 {[%clk 0:01:46]}  exf5 {[%clk 0:01:34]} 19. Bxf5+ {[%clk 0:01:46]}  Kc7 {[%clk 0:01:30]} 20. Bxg5 {[%clk 0:01:41]}  hxg5 {[%clk 0:01:31]} 21. g4 {[%clk 0:01:34]}  Qe7 {[%clk 0:01:03]} 22. Qg3 {[%clk 0:01:31]}  Kb7 {[%clk 0:01:00]} 23. O-O {[%clk 0:01:30]}  Nh6 {[%clk 0:00:57]} 24. Bc2 {[%clk 0:01:19]}  Qe6 {[%clk 0:00:52]} 25. f3 {[%clk 0:01:19]}  Be8 {[%clk 0:00:52]} 26. b3 {[%clk 0:01:13]}  g6 {[%clk 0:00:44]} 27. bxc4 {[%clk 0:01:12]}  bxc4 {[%clk 0:00:44]} 28. hxg6 {[%clk 0:01:02]}  Bxg6 {[%clk 0:00:44]} 29. Bxg6 {[%clk 0:00:59]}  Qxg6 {[%clk 0:00:45]} 30. Rab1 {[%clk 0:00:56]}  Qd3 {[%clk 0:00:31]} 31. Rb2 {[%clk 0:00:45]}  Qe3+ {[%clk 0:00:26]} 32. Kg2 {[%clk 0:00:38]}  Kc6 {[%clk 0:00:20]} 33. Rfb1 {[%clk 0:00:35]}  Rab8 {[%clk 0:00:19]} 34. Nf1 {[%clk 0:00:31]}  Qxc3 {[%clk 0:00:12]} 35. e6 {[%clk 0:00:30]}  Qxd4 {[%clk 0:00:12]} 36. e7 {[%clk 0:00:27]}  Qf4 {[%clk 0:00:07]} 37. Qf2 {[%clk 0:00:25]}  d4 {[%clk 0:00:08]} 38. Ng3 {[%clk 0:00:25]}  Rh7 {[%clk 0:00:06]} 39. Rb5 {[%clk 0:00:24]}  Rxe7 {[%clk 0:00:05]} 40. Ne4 {[%clk 0:00:22]}  Nxg4 {[%clk 0:00:03]} 41. Rc5+ {[%clk 0:00:20]}  Kb7 {[%clk 0:00:04]} 42. Qxd4 {[%clk 0:00:17]}  Ne3+ {[%clk 0:00:03]} 43. Kg1 {[%clk 0:00:12]}  Rxe4 {[%clk 0:00:03]} 44. Qd7+ {[%clk 0:00:08]}  Ka6 {[%clk 0:00:02]} 45. Qb5+ {[%clk 0:00:07]}  Kb7 {[%clk 0:00:02]} 46. Qxb6+ {[%clk 0:00:05]}  Ka8 {[%clk 0:00:02]} 47. Qc6+ {[%clk 0:00:05]}  Ka7 {[%clk 0:00:01]} 48. Rxc4 {[%clk 0:00:04]}  Qg3+ {[%clk 0:00:01]} 49. Kh1 {[%clk 0:00:02]}  Qg2# {[%clk 0:00:01]} 0-1

[Event "December 5 Late 2023"]
[Site "https://www.chess.com"]
[Date "2023.12.05"]
[Round "6"]
[White "Rees, Ioan"]
[Black "Buenafe Moya, Javier"]
[Result "1-0"]
[Board "104"]
[TimeControl "180+1"]
[WhiteFideId "1801236"]
[BlackFideId "2206412"]
[WhiteElo "2497"]
[BlackElo "2371"]
[WhiteTeam "WLS"]
[BlackTeam "ESP"]
[WhiteClock "0:00:28"]
[BlackClock "0:00:28"]

1. e4 {[%clk 0:03:00]}  e5 {[%clk 0:02:59]} 2. Nf3 {[%clk 0:03:01]}  Nc6 {[%clk 0:02:58]} 3. Bc4 {[%clk 0:03:01]}  Bc5 {[%clk 0:02:57]} 4. d3 {[%clk 0:03:02]}  Nf6 {[%clk 0:02:55]} 5. c3 {[%clk 0:02:59]}  O-O {[%clk 0:02:54]} 6. Bg5 {[%clk 0:02:58]}  h6 {[%clk 0:02:52]} 7. Bh4 {[%clk 0:02:57]}  g5 {[%clk 0:02:48]} 8. Nxg5 {[%clk 0:02:57]}  hxg5 {[%clk 0:02:47]} 9. Bxg5 {[%clk 0:02:58]}  d6 {[%clk 0:02:41]} 10. Qf3 {[%clk 0:02:57]}  Kg7 {[%clk 0:02:40]} 11. Qg3 {[%clk 0:02:54]}  Qd7 {[%clk 0:02:32]} 12. Qh4 {[%clk 0:02:37]}  Ng8 {[%clk 0:02:29]} 13. b4 {[%clk 0:02:16]}  Nxb4 {[%clk 0:02:24]} 14. cxb4 {[%clk 0:02:16]}  Bd4 {[%clk 0:02:23]} 15. O-O {[%clk 0:02:10]}  Bxa1 {[%clk 0:02:17]} 16. f4 {[%clk 0:01:57]}  Bd4+ {[%clk 0:02:17]} 17. Kh1 {[%clk 0:01:57]}  Qg4 {[%clk 0:02:16]} 18. Qe1 {[%clk 0:01:47]}  Be6 {[%clk 0:02:08]} 19. h3 {[%clk 0:01:47]}  Qh5 {[%clk 0:02:05]} 20. Nd2 {[%clk 0:01:45]}  Bxc4 {[%clk 0:02:03]} 21. Nxc4 {[%clk 0:01:46]}  f6 {[%clk 0:01:51]} 22. Bh4 {[%clk 0:01:43]}  Nh6 {[%clk 0:01:43]} 23. g4 {[%clk 0:01:37]}  Qe8 {[%clk 0:01:33]} 24. g5 {[%clk 0:01:32]}  fxg5 {[%clk 0:01:33]} 25. Bxg5 {[%clk 0:01:31]}  exf4 {[%clk 0:01:31]} 26. Qh4 {[%clk 0:01:29]}  Qg6 {[%clk 0:01:26]} 27. Bxf4 {[%clk 0:01:21]}  Rf7 {[%clk 0:01:13]} 28. Bxh6+ {[%clk 0:01:17]}  Qxh6 {[%clk 0:01:13]} 29. Rxf7+ {[%clk 0:01:17]}  Kg6 {[%clk 0:01:08]} 30. Qxh6+ {[%clk 0:01:06]}  Kxh6 {[%clk 0:01:08]} 31. Rxc7 {[%clk 0:01:07]}  Rg8 {[%clk 0:01:07]} 32. Nxd6 {[%clk 0:01:04]}  Bb6 {[%clk 0:01:02]} 33. Nf5+ {[%clk 0:01:00]}  Kh5 {[%clk 0:00:59]} 34. Rg7 {[%clk 0:00:57]}  Rd8 {[%clk 0:00:58]} 35. Rg3 {[%clk 0:00:54]}  Bc7 {[%clk 0:00:50]} 36. Rf3 {[%clk 0:00:52]}  Be5 {[%clk 0:00:49]} 37. d4 {[%clk 0:00:49]}  Bxd4 {[%clk 0:00:48]} 38. Rd3 {[%clk 0:00:45]}  Bf6 {[%clk 0:00:48]} 39. Rxd8 {[%clk 0:00:45]}  Bxd8 {[%clk 0:00:48]} 40. Kg2 {[%clk 0:00:43]}  Kg5 {[%clk 0:00:48]} 41. Kf3 {[%clk 0:00:43]}  Bf6 {[%clk 0:00:48]} 42. h4+ {[%clk 0:00:40]}  Kg6 {[%clk 0:00:48]} 43. Kf4 {[%clk 0:00:38]}  Bc3 {[%clk 0:00:45]} 44. b5 {[%clk 0:00:37]}  Kf6 {[%clk 0:00:44]} 45. h5 {[%clk 0:00:36]}  Be5+ {[%clk 0:00:43]} 46. Ke3 {[%clk 0:00:35]}  a5 {[%clk 0:00:42]} 47. Kd3 {[%clk 0:00:33]}  b6 {[%clk 0:00:41]} 48. h6 {[%clk 0:00:32]}  Ke6 {[%clk 0:00:40]} 49. Kc4 {[%clk 0:00:32]}  Bf6 {[%clk 0:00:38]} 50. a4 {[%clk 0:00:30]}  Be5 {[%clk 0:00:37]} 51. Ne3 {[%clk 0:00:29]}  Kf6 {[%clk 0:00:33]} 52. Nd5+ {[%clk 0:00:29]}  Kg6 {[%clk 0:00:33]} 53. Nxb6 {[%clk 0:00:29]}  Kxh6 {[%clk 0:00:33]} 54. Kd5 {[%clk 0:00:29]}  Bb8 {[%clk 0:00:32]} 55. Nc4 {[%clk 0:00:29]}  Kg7 {[%clk 0:00:30]} 56. Nxa5 {[%clk 0:00:29]}  Kf8 {[%clk 0:00:30]} 57. Nc6 {[%clk 0:00:30]}  Bc7 {[%clk 0:00:29]} 58. a5 {[%clk 0:00:30]}  Ke8 {[%clk 0:00:30]} 59. a6 {[%clk 0:00:30]}  Kd7 {[%clk 0:00:30]} 60. a7 {[%clk 0:00:31]}  Bb8 {[%clk 0:00:29]} 61. a8=Q {[%clk 0:00:28]}  Kc7 {[%clk 0:00:28]} 62. Qxb8+ {[%clk 0:00:28]}  Kd7 {[%clk 0:00:28]} 63. Qd8# {[%clk 0:00:28]} 1-0